bitfinex/quotes_BTCUSD_20241107
["timestamp","ask_amount","ask_price","bid_price","bid_amount"]
[1730969962241,4.07716986,75129.0,75128.0,0.19332362]
[1730969962497,4.07716986,75129.0,75128.0,0.32092362]
[1730969962933,2.57716986,75129.0,75128.0,0.32092362]
[1730969969362,4.07716986,75129.0,75128.0,0.32092362]
[1730969971201,2.57716986,75129.0,75128.0,0.45816464]
[1730969971429,2.57716986,75129.0,75128.0,0.51777464]
[1730969972695,2.57716986,75129.0,75128.0,0.49116464]
[1730969973365,2.57716986,75129.0,75128.0,0.46816464]
[1730969975979,2.70085941,75129.0,75128.0,0.06021762]
[1730969976137,2.57716986,75129.0,75128.0,0.06021762]
[1730969976304,2.71027386,75129.0,75128.0,0.06021762]
[1730969976495,4.21027386,75129.0,75128.0,0.06021762]
[1730969976701,4.07716986,75129.0,75128.0,0.06021762]
[1730969977116,4.07716986,75129.0,75128.0,0.19332362]
[1730969978395,4.07716986,75129.0,75128.0,0.27412362]
[1730969978590,2.57716986,75129.0,75128.0,0.27412362]
[1730969979419,2.57716986,75129.0,75128.0,0.56805419]
[1730969979617,2.57716986,75129.0,75128.0,0.61665419]
[1730969979790,2.57716986,75129.0,75128.0,0.71665419]
[1730969980164,2.57716986,75129.0,75128.0,0.74326419]
[1730969980370,2.57716986,75129.0,75128.0,0.61957464]
[1730969982063,2.57716986,75129.0,75128.0,0.62157464]
[1730969982266,2.57716986,75129.0,75128.0,0.61957464]
[1730969983806,2.57716986,75129.0,75128.0,0.62157464]
[1730969985377,2.57716986,75129.0,75128.0,0.61957464]
[1730969987688,2.4761139,75129.0,75128.0,0.70434956]
[1730969989060,2.4761139,75129.0,75128.0,0.70234956]
[1730969990361,2.4761139,75129.0,75128.0,0.70434956]
[1730969990598,2.4761139,75129.0,75128.0,0.70234956]
[1730969992239,2.4761139,75129.0,75128.0,0.70434956]
[1730969995722,1.4761139,75129.0,75128.0,0.70434956]
[1730969998328,1.18971711,75129.0,75128.0,0.70434956]
[1730969998563,0.90478802,75129.0,75128.0,0.70434956]
[1730969998798,0.86651802,75129.0,75128.0,0.70434956]
[1730969999017,0.05241175,75129.0,75128.0,0.78712448]
[1730969999271,0.20060478,75161.0,75128.0,0.78712448]
[1730969999272,0.19985078,75160.0,75154.0,0.27806]
[1730969999493,0.19985078,75160.0,75154.0,0.35936]
[1730969999938,0.000754,75161.0,75154.0,0.36136]
[1730970000868,0.000754,75161.0,75154.0,0.35936]
[1730970001553,0.000754,75161.0,75154.0,0.41457932]
[1730970002484,0.000754,75161.0,75154.0,0.54682034]
[1730970007210,0.000754,75161.0,75154.0,0.53682034]
[1730970007414,0.000754,75161.0,75154.0,0.54682034]
[1730970007616,0.0038287,75155.0,75154.0,0.54682034]
[1730970007818,0.0038287,75155.0,75154.0,0.32552034]
[1730970008089,0.00378437,75155.0,75154.0,0.32552034]
[1730970008351,0.00378437,75155.0,75154.0,0.33052034]
[1730970008562,0.00378437,75155.0,75154.0,0.32552034]
[1730970009301,0.00378437,75155.0,75154.0,0.19246034]
[1730970009715,0.00378437,75155.0,75154.0,0.06021932]
[1730970010114,0.13684237,75155.0,75154.0,0.005]
[1730970010324,0.00378437,75155.0,75154.0,0.005]
[1730970012271,0.000754,75161.0,75154.0,0.005]
[1730970012608,0.133802,75161.0,75154.0,0.005]
[1730970012807,0.000754,75161.0,75154.0,0.005]
[1730970013020,0.000754,75161.0,75160.0,0.005]
[1730970013921,0.133801,75161.0,75160.0,0.005]
[1730970014375,0.257901,75161.0,75160.0,0.005]
[1730970015126,0.257901,75161.0,75152.0,0.005]
[1730970015127,0.133061,75153.0,75152.0,0.005]
[1730970017013,1.633061,75153.0,75152.0,0.005]
[1730970017631,0.133072,75147.0,75146.0,0.001664]
[1730970018716,1.62358321,75153.0,75146.0,0.006664]
[1730970018958,0.133063,75152.0,75151.0,0.005]
[1730970019785,1.62358321,75153.0,75147.0,0.005]
[1730970019939,1.62358321,75153.0,75146.0,0.006664]
[1730970020141,1.62358321,75153.0,75147.0,0.005]
[1730970020371,0.133063,75152.0,75151.0,0.005]
[1730970022076,0.133072,75147.0,75146.0,0.001664]
[1730970022605,0.13307,75148.0,75146.0,0.001664]
[1730970022845,0.266131,75151.0,75146.0,0.001664]
[1730970023058,0.133072,75147.0,75146.0,0.001664]
[1730970026638,1.633072,75147.0,75146.0,0.001664]
[1730970027484,1.70090004,75147.0,75146.0,0.001664]
[1730970027867,1.58278804,75147.0,75146.0,0.001664]
[1730970028063,1.5,75147.0,75146.0,0.006664]
[1730970031872,1.5,75147.0,75146.0,0.13890502]
[1730970032074,0.000832,75159.0,75158.0,0.005]
[1730970034407,0.003832,75159.0,75158.0,0.005]
[1730970034608,0.000754,75161.0,75158.0,0.005]
[1730970035036,0.003,75159.0,75158.0,0.005]
[1730970035442,1.5,75159.0,75158.0,0.005]
[1730970038203,1.5,75159.0,75158.0,0.006]
[1730970039203,1.5,75159.0,75158.0,0.005]
[1730970039412,1.5,75159.0,75151.0,0.005]
[1730970039624,0.133059,75155.0,75151.0,0.005]
[1730970039827,0.133061,75154.0,75151.0,0.005]
[1730970040877,0.133058,75156.0,75151.0,0.005]
[1730970041006,1.5,75159.0,75151.0,0.005]
[1730970041213,0.133055,75157.0,75151.0,0.005]
[1730970041414,1.5,75159.0,75151.0,0.005]
[1730970041616,0.133056,75156.0,75151.0,0.005]
[1730970042030,0.266106,75158.0,75151.0,0.005]
[1730970042442,0.133059,75155.0,75151.0,0.005]
[1730970042637,0.266106,75158.0,75151.0,0.005]
[1730970042840,1.5,75159.0,75151.0,0.005]
[1730970042841,0.266109,75157.0,75151.0,0.005]
[1730970043039,0.13306,75154.0,75151.0,0.005]
[1730970043459,1.5,75159.0,75158.0,0.005]
[1730970051785,1.5,75159.0,75158.0,0.005]
[1730970055605,1.5,75159.0,75158.0,0.006666]
[1730970056251,0.000833,75160.0,75159.0,0.005]
[1730970057861,0.000833,75160.0,75159.0,0.13724102]
[1730970058085,0.000833,75160.0,75159.0,0.22054102]
[1730970060333,0.000833,75160.0,75159.0,0.0883]
[1730970060560,0.08358195,75160.0,75159.0,0.0883]
[1730970060801,0.000833,75160.0,75159.0,0.0883]
[1730970066607,0.000833,75160.0,75159.0,0.26584102]
[1730970068744,0.000833,75160.0,75159.0,0.26750702]
[1730970069455,0.000833,75160.0,75159.0,0.135266]
[1730970069679,0.21663095,75160.0,75159.0,0.006666]
[1730970070096,1.71663095,75160.0,75159.0,0.006666]
[1730970070756,1.8473799,75160.0,75159.0,0.001666]
[1730970070975,2.30891626,75160.0,75159.0,0.001666]
[1730970072060,2.17667349,75160.0,75159.0,0.001666]
[1730970072274,2.18267349,75160.0,75159.0,0.001666]
[1730970073385,2.14585129,75160.0,75159.0,0.002666]
[1730970073595,2.13985129,75160.0,75159.0,0.002666]
[1730970074028,2.14385129,75160.0,75159.0,0.002666]
[1730970074448,2.13985129,75160.0,75159.0,0.002666]
[1730970074666,2.13983922,75160.0,75159.0,0.002666]
[1730970074892,2.14583922,75160.0,75159.0,0.002666]
[1730970075566,2.14783922,75160.0,75159.0,0.002666]
[1730970076058,2.15283922,75160.0,75159.0,0.002666]
[1730970076474,1.97123922,75160.0,75159.0,0.002666]
[1730970077800,2.07123922,75160.0,75159.0,0.002666]
[1730970078217,2.05879872,75160.0,75159.0,0.002666]
[1730970078678,2.07122993,75160.0,75159.0,0.002666]
[1730970079108,2.07322993,75160.0,75159.0,0.002666]
[1730970080516,2.09110969,75160.0,75159.0,0.002666]
[1730970080962,2.07122993,75160.0,75159.0,0.002666]
[1730970081188,1.91322993,75160.0,75159.0,0.002666]
[1730970081416,1.90079872,75160.0,75159.0,0.00262874]
[1730970081833,1.89479872,75160.0,75159.0,0.00262874]
[1730970082049,1.89679872,75160.0,75159.0,0.00262874]
[1730970082483,1.89179872,75160.0,75159.0,0.00162874]
[1730970082705,1.88979872,75160.0,75159.0,0.00162874]
[1730970082946,1.89179872,75160.0,75159.0,0.00162874]
[1730970083165,1.88979872,75160.0,75159.0,0.00162874]
[1730970083681,1.89279872,75160.0,75159.0,0.00162874]
[1730970083900,1.88979872,75160.0,75159.0,0.00162874]
[1730970084111,1.89279872,75160.0,75159.0,0.00162874]
[1730970084533,1.88979872,75160.0,75159.0,0.00162874]
[1730970084977,1.637882,75160.0,75159.0,0.00162874]
[1730970085179,1.640882,75160.0,75159.0,0.00162874]
[1730970085387,1.637882,75160.0,75159.0,0.00162874]
[1730970086023,1.641882,75160.0,75159.0,0.00162874]
[1730970086271,1.7655577,75160.0,75159.0,0.00162874]
[1730970086692,1.77798022,75160.0,75159.0,0.00162874]
[1730970087112,1.64493122,75160.0,75159.0,0.00162874]
[1730970087319,1.508833,75160.0,75159.0,0.00162874]
[1730970087525,1.508833,75160.0,75159.0,0.08042874]
[1730970088328,1.508833,75160.0,75159.0,0.08542874]
[1730970089834,1.504833,75160.0,75159.0,0.08542874]
[1730970090258,1.500833,75160.0,75159.0,0.08542874]
[1730970091522,0.000833,75160.0,75159.0,0.08542874]
[1730970091930,0.000833,75160.0,75159.0,0.26366976]
[1730970097768,0.000833,75160.0,75159.0,0.13142874]
[1730970098883,0.000833,75160.0,75159.0,0.08542874]
[1730970103524,0.000833,75160.0,75159.0,0.13262874]
[1730970104996,0.000833,75160.0,75159.0,0.26486976]
[1730970105173,0.000833,75160.0,75159.0,0.26753058]
[1730970107308,0.000833,75160.0,75159.0,0.26486976]
[1730970109847,0.000833,75160.0,75159.0,0.26986976]
[1730970110047,0.000833,75160.0,75159.0,0.26486976]
[1730970110642,0.000833,75160.0,75159.0,0.29553045]
[1730970110845,0.000833,75160.0,75159.0,0.29286976]
[1730970111063,0.000833,75160.0,75159.0,0.39286976]
[1730970111267,0.000833,75160.0,75159.0,0.40286976]
[1730970122002,0.000833,75160.0,75159.0,0.37986976]
[1730970122619,0.000833,75160.0,75159.0,0.37486976]
[1730970123060,0.000833,75160.0,75159.0,0.37986976]
[1730970123472,0.000833,75160.0,75159.0,0.42406676]
[1730970124029,0.000833,75160.0,75159.0,0.41406676]
[1730970124433,0.000833,75160.0,75159.0,0.40906676]
[1730970124638,0.000833,75160.0,75159.0,0.36686676]
[1730970134190,0.000833,75160.0,75159.0,0.23462574]
[1730970135672,0.000833,75160.0,75159.0,0.05082574]
[1730970138759,0.049733,75160.0,75159.0,0.04582574]
[1730970138965,0.49181051,75160.0,75159.0,0.04582574]
[1730970139187,0.40908127,75160.0,75159.0,0.04582574]
[1730970139409,2.05266374,75160.0,75159.0,0.04582574]
[1730970139616,2.02028465,75160.0,75159.0,0.04582574]
[1730970139829,2.03273484,75160.0,75159.0,0.04582574]
[1730970140041,2.05265439,75160.0,75159.0,0.04582574]
[1730970140239,2.27497761,75160.0,75159.0,0.04582574]
[1730970140471,2.29488359,75160.0,75159.0,0.04582574]
[1730970140675,2.27497761,75160.0,75159.0,0.04582574]
[1730970141120,2.27997761,75160.0,75159.0,0.04582574]
[1730970141323,2.27497761,75160.0,75159.0,0.04582574]
[1730970142588,2.27997761,75160.0,75159.0,0.04582574]
[1730970142796,2.15133484,75160.0,75159.0,0.04682574]
[1730970143210,2.13388465,75160.0,75159.0,0.04682574]
[1730970143419,2.14630866,75160.0,75159.0,0.04682574]
[1730970143623,2.14430866,75160.0,75159.0,0.04582574]
[1730970144077,2.14630866,75160.0,75159.0,0.04582574]
[1730970144489,2.15030866,75160.0,75159.0,0.04582574]
[1730970144703,2.13788465,75160.0,75159.0,0.04582574]
[1730970151722,2.13871765,75160.0,75159.0,0.04582574]
[1730970152414,2.13871765,75160.0,75159.0,0.15582574]
[1730970159372,2.18061408,75160.0,75159.0,0.15582574]
[1730970160002,1.642882,75160.0,75159.0,0.15582574]
[1730970161501,1.638882,75160.0,75159.0,0.15582574]
[1730970161708,1.633882,75160.0,75159.0,0.15582574]
[1730970167567,1.64632981,75160.0,75159.0,0.15582574]
[1730970167795,1.71666103,75160.0,75159.0,0.15582574]
[1730970168210,1.633882,75160.0,75159.0,0.15582574]
[1730970168415,1.71666103,75160.0,75159.0,0.15582574]
[1730970168846,1.500833,75160.0,75159.0,0.15582574]
[1730970169056,1.500833,75160.0,75159.0,0.28182574]
[1730970172426,1.500833,75160.0,75159.0,0.23682574]
[1730970173063,1.633882,75160.0,75159.0,0.23682574]
[1730970173526,1.500833,75160.0,75159.0,0.23682574]
[1730970173934,1.633882,75160.0,75159.0,0.23682574]
[1730970177662,1.633882,75160.0,75159.0,0.15582574]
[1730970182346,1.84890205,75160.0,75159.0,0.15582574]
[1730970183065,1.76612302,75160.0,75159.0,0.15582574]
[1730970185313,1.76616302,75160.0,75159.0,0.15582574]
[1730970188577,1.84894205,75160.0,75159.0,0.15582574]
[1730970190130,1.85394205,75160.0,75159.0,0.15582574]
[1730970190541,1.85894205,75160.0,75159.0,0.15682574]
[1730970192275,0.35894205,75160.0,75159.0,0.15682574]
[1730970193159,1.85894205,75160.0,75159.0,0.15682574]
[1730970194686,1.94172108,75160.0,75159.0,0.15682574]
[1730970196890,1.93672108,75160.0,75159.0,0.15582574]
[1730970197314,1.94172108,75160.0,75159.0,0.15582574]
[1730970197743,1.93672108,75160.0,75159.0,0.15582574]
[1730970198182,1.93972108,75160.0,75159.0,0.15582574]
[1730970198598,1.93672108,75160.0,75159.0,0.15582574]
[1730970199039,1.94072108,75160.0,75159.0,0.15582574]
[1730970199736,0.133051,75159.0,75158.0,0.001666]
[1730970199945,0.26529202,75159.0,75158.0,0.001666]
[1730970200582,1.76529202,75159.0,75158.0,0.001666]
[1730970201457,1.76929202,75159.0,75158.0,0.001666]
[1730970201659,1.77229202,75159.0,75158.0,0.001666]
[1730970204223,1.85507105,75159.0,75158.0,0.001666]
[1730970204678,1.77229202,75159.0,75158.0,0.001666]
[1730970205099,1.85507105,75159.0,75158.0,0.001666]
[1730970205759,1.77229202,75159.0,75158.0,0.001666]
[1730970205964,1.85507105,75159.0,75158.0,0.001666]
[1730970206174,1.85507105,75159.0,75158.0,0.078566]
[1730970209137,1.85511105,75159.0,75158.0,0.078566]
[1730970211622,1.84811105,75159.0,75158.0,0.078566]
[1730970212149,1.85111105,75159.0,75158.0,0.078566]
[1730970214415,1.71806005,75159.0,75158.0,0.078566]
[1730970214652,1.85111105,75159.0,75158.0,0.078566]
[1730970215758,1.71887003,75159.0,75158.0,0.078566]
[1730970219222,1.636091,75159.0,75158.0,0.078566]
[1730970219656,1.58665203,75159.0,75158.0,0.078566]
[1730970220314,1.58565203,75159.0,75158.0,0.078566]
[1730970220953,1.58365203,75159.0,75158.0,0.078566]
[1730970221163,1.71670303,75159.0,75158.0,0.078566]
[1730970226784,1.84894405,75159.0,75158.0,0.001666]
[1730970228040,1.84994405,75159.0,75158.0,0.001666]
[1730970229836,1.93272308,75159.0,75158.0,0.001666]
[1730970239169,2.04272308,75159.0,75158.0,0.001666]
[1730970249352,1.87716502,75159.0,75158.0,0.001666]
[1730970249590,2.04272308,75159.0,75158.0,0.001666]
[1730970249899,2.17496585,75159.0,75158.0,0.001666]
[1730970250105,2.00940779,75159.0,75158.0,0.001666]
[1730970250583,2.17496585,75159.0,75158.0,0.001666]
[1730970251286,2.04272308,75159.0,75158.0,0.001666]
[1730970254698,2.19114365,75159.0,75158.0,0.001666]
[1730970254919,2.22371277,75159.0,75158.0,0.001666]
[1730970255588,2.22571277,75159.0,75158.0,0.001666]
[1730970256241,2.22971277,75159.0,75158.0,0.001666]
[1730970256463,2.36195554,75159.0,75158.0,0.001666]
[1730970256739,2.35995554,75159.0,75158.0,0.001666]
[1730970256966,2.35895554,75159.0,75158.0,0.001666]
[1730970257614,2.36095554,75159.0,75158.0,0.001666]
[1730970257831,2.36395554,75159.0,75158.0,0.001666]
[1730970258077,2.36595554,75159.0,75158.0,0.001666]
[1730970262376,0.002,75152.0,75146.0,0.20151478]
[1730970262602,0.21585103,75147.0,75146.0,0.20151478]
[1730970262826,0.43087108,75147.0,75146.0,0.20151478]
[1730970263081,1.93087108,75147.0,75146.0,0.001664]
[1730970263502,1.84809205,75147.0,75146.0,0.001664]
[1730970264195,1.98033482,75147.0,75146.0,0.001664]
[1730970264441,1.98133482,75147.0,75146.0,0.001664]
[1730970265578,1.84909205,75147.0,75146.0,0.001664]
[1730970267539,2.07916192,75147.0,75146.0,0.001664]
[1730970267765,0.133093,75135.0,75134.0,0.082]
[1730970268016,0.34811305,75135.0,75134.0,0.082]
[1730970268511,0.133104,75129.0,75128.0,0.083666]
[1730970268730,0.34812405,75129.0,75128.0,0.083666]
[1730970269186,1.84812405,75129.0,75128.0,0.083666]
[1730970269399,1.84812405,75129.0,75128.0,0.001666]
[1730970270678,1.93090308,75129.0,75128.0,0.001666]
[1730970271168,1.93290308,75129.0,75128.0,0.001666]
[1730970271660,1.93490308,75129.0,75128.0,0.001666]
[1730970274114,1.93090308,75129.0,75128.0,0.001666]
[1730970274388,1.96819392,75129.0,75128.0,0.001666]
[1730970274620,2.21943669,75129.0,75128.0,0.001666]
[1730970274838,2.21743669,75129.0,75128.0,0.001666]
[1730970275069,2.21443669,75129.0,75128.0,0.001666]
[1730970275295,2.21343669,75129.0,75128.0,0.001666]
[1730970275823,2.24443669,75129.0,75128.0,0.001666]
[1730970276052,2.26892943,75129.0,75128.0,0.001666]
[1730970276279,2.27892943,75129.0,75128.0,0.001666]
[1730970277601,2.08490308,75129.0,75128.0,0.001666]
[1730970280271,2.08690308,75129.0,75128.0,0.001666]
[1730970282244,2.12419392,75129.0,75128.0,0.001666]
[1730970284642,0.01,75122.0,75119.0,0.27638378]
[1730970284875,0.21589903,75120.0,75119.0,0.20038378]
[1730970285105,0.21589903,75120.0,75119.0,0.000533]
[1730970285106,0.34814005,75120.0,75119.0,0.000533]
[1730970286218,1.98829662,75120.0,75119.0,0.000533]
[1730970286648,1.86413611,75120.0,75119.0,0.000533]
[1730970287353,1.97413611,75120.0,75119.0,0.000533]
[1730970287569,1.97613611,75120.0,75119.0,0.000533]
[1730970288760,2.02783954,75120.0,75119.0,0.000533]
[1730970288983,2.07902241,75120.0,75119.0,0.000533]
[1730970289199,2.08102241,75120.0,75119.0,0.000533]
[1730970289440,2.15184514,75120.0,75119.0,0.000533]
[1730970290544,2.15384514,75120.0,75119.0,0.000533]
[1730970290904,2.07902241,75120.0,75119.0,0.000533]
[1730970291143,2.02931898,75120.0,75119.0,0.000533]
[1730970294377,2.04173346,75120.0,75119.0,0.000533]
[1730970294594,2.02931898,75120.0,75119.0,0.000533]
[1730970294796,2.04173697,75120.0,75119.0,0.000533]
[1730970295288,2.08558579,75120.0,75119.0,0.000533]
[1730970297858,2.08562579,75120.0,75119.0,0.000533]
[1730970298927,2.03244292,75120.0,75119.0,0.000533]
[1730970299332,2.03410892,75120.0,75119.0,0.000533]
[1730970299542,1.9902601,75120.0,75119.0,0.000533]
[1730970300216,2.0435271,75120.0,75119.0,0.000533]
[1730970302018,1.80363201,75120.0,75119.0,0.047333]
[1730970302244,1.87399305,75120.0,75119.0,0.124833]
[1730970302487,1.95384605,75120.0,75119.0,0.124833]
[1730970302703,1.97630213,75120.0,75119.0,0.124833]
[1730970303217,1.83318213,75120.0,75119.0,0.124833]
[1730970303705,1.6504031,75120.0,75119.0,0.124833]
[1730970303922,1.63794702,75120.0,75119.0,0.124833]
[1730970304374,1.64294702,75120.0,75119.0,0.124833]
[1730970304595,1.63594702,75120.0,75119.0,0.124833]
[1730970305079,1.501706,75120.0,75119.0,0.129833]
[1730970305307,0.001706,75120.0,75119.0,0.129833]
[1730970305552,0.01,75150.0,75129.0,0.1288]
[1730970305786,0.01,75150.0,75125.0,0.005]
[1730970305787,0.13224102,75136.0,75131.0,0.0803]
[1730970306029,0.13224102,75136.0,75132.0,0.0471]
[1730970306270,0.08277903,75140.0,75134.0,0.0471]
[1730970306506,0.08277903,75140.0,75136.0,0.0471]
[1730970306507,0.21502005,75140.0,75136.0,0.0471]
[1730970306749,0.21502005,75140.0,75137.0,0.0832]
[1730970306972,0.13224102,75140.0,75137.0,0.0832]
[1730970307203,0.21502005,75140.0,75137.0,0.0832]
[1730970307440,0.21502005,75140.0,75139.0,0.0803]
[1730970307441,0.13224102,75140.0,75139.0,0.0803]
[1730970307679,0.19985078,75148.0,75139.0,0.0803]
[1730970307924,0.08277903,75147.0,75139.0,0.0803]
[1730970308780,0.08277903,75142.0,75139.0,0.0803]
[1730970309019,0.08277903,75142.0,75139.0,0.0813]
[1730970309659,0.08277903,75146.0,75139.0,0.0813]
[1730970310088,0.08277903,75146.0,75140.0,0.0805]
[1730970310303,1.5,75145.0,75140.0,0.0805]
[1730970310582,0.001,75142.0,75140.0,0.0805]
[1730970311004,1.5,75145.0,75140.0,0.0805]
[1730970311432,0.08444503,75142.0,75140.0,0.0815]
[1730970311651,0.08444503,75142.0,75140.0,0.0805]
[1730970312102,1.5,75141.0,75140.0,0.0815]
[1730970313277,1.5,75141.0,75140.0,0.0805]
[1730970314205,1.501,75141.0,75140.0,0.0805]
[1730970314470,1.502,75141.0,75140.0,0.0805]
[1730970316296,1.634083,75141.0,75140.0,0.0805]
[1730970316518,1.5,75141.0,75140.0,0.0805]
[1730970316744,1.5,75141.0,75140.0,0.0815]
[1730970316745,1.76532402,75141.0,75140.0,0.0815]
[1730970316958,1.84810305,75141.0,75140.0,0.0805]
[1730970317175,1.76532402,75141.0,75140.0,0.0805]
[1730970317388,1.76532402,75141.0,75140.0,0.0815]
[1730970317601,1.76532402,75141.0,75140.0,0.0805]
[1730970317808,1.76632402,75141.0,75140.0,0.0805]
[1730970318024,1.76732402,75141.0,75140.0,0.0805]
[1730970319401,1.76632402,75141.0,75140.0,0.0805]
[1730970319805,1.76732402,75141.0,75140.0,0.0805]
[1730970320000,1.76632402,75141.0,75140.0,0.0805]
[1730970320422,0.266169,75140.0,75131.0,0.0456]
[1730970320640,0.21587203,75135.0,75134.0,0.0776]
[1730970320882,0.34811305,75135.0,75134.0,0.0776]
[1730970321325,1.84811305,75135.0,75134.0,0.0776]
[1730970321527,0.133105,75129.0,75128.0,0.0807]
[1730970321730,0.21588403,75129.0,75128.0,0.0807]
[1730970321943,0.08277903,75129.0,75128.0,0.0807]
[1730970322181,0.34812405,75129.0,75128.0,0.0807]
[1730970322394,1.84812405,75129.0,75128.0,0.0807]
[1730970323037,0.133113,75124.0,75123.0,0.0756]
[1730970323264,0.34813305,75124.0,75123.0,0.0756]
[1730970323919,0.13312,75120.0,75119.0,0.000533]
[1730970324143,0.34814005,75120.0,75119.0,0.000533]
[1730970325307,0.13224102,75120.0,75119.0,0.001533]
[1730970325751,1.76536102,75120.0,75119.0,0.001533]
[1730970326162,1.63224102,75120.0,75119.0,0.001533]
[1730970326368,1.5,75120.0,75119.0,0.049033]
[1730970328849,1.5,75120.0,75119.0,0.131633]
[1730970330513,0.30485078,75134.0,75119.0,0.136633]
[1730970330733,0.3320918,75134.0,75124.0,0.1262]
[1730970330941,0.3320918,75134.0,75125.0,0.0767]
[1730970331170,1.5,75133.0,75125.0,0.0767]
[1730970333466,1.509,75133.0,75125.0,0.0767]
[1730970334304,0.13224102,75132.0,75125.0,0.0767]
[1730970335762,0.13624102,75132.0,75125.0,0.0767]
[1730970336802,0.14124102,75132.0,75125.0,0.0767]
[1730970337856,1.5,75131.0,75125.0,0.0767]
[1730970338065,1.5,75131.0,75126.0,0.1259]
[1730970338283,0.009,75132.0,75129.0,0.1259]
[1730970338908,0.005,75132.0,75129.0,0.0456]
[1730970339110,0.004,75131.0,75130.0,0.0803]
[1730970339563,1.5,75131.0,75130.0,0.0803]
[1730970340595,1.5,75131.0,75130.0,0.0813]
[1730970342502,1.5,75131.0,75130.0,0.13402004]
[1730970342899,0.001666,75141.0,75136.0,0.005]
[1730970343105,0.19985078,75139.0,75138.0,0.0473]
[1730970343512,1.5,75139.0,75138.0,0.0473]
[1730970344316,0.133088,75138.0,75137.0,0.0823]
[1730970344726,1.633087,75139.0,75137.0,0.0823]
[1730970345183,1.633087,75139.0,75138.0,0.001]
[1730970345426,0.133088,75138.0,75137.0,0.0823]
[1730970346758,0.133088,75138.0,75137.0,0.0833]
[1730970347192,0.133088,75138.0,75137.0,0.0823]
[1730970347413,1.5,75139.0,75137.0,0.0823]
[1730970347622,1.5,75139.0,75137.0,0.0833]
[1730970347821,1.5,75139.0,75137.0,0.0823]
[1730970348031,1.5,75139.0,75137.0,0.0833]
[1730970348496,1.5,75139.0,75137.0,0.0823]
[1730970348754,1.5,75139.0,75138.0,0.0544]
[1730970348970,1.5,75139.0,75138.0,0.1315]
[1730970349829,1.501666,75139.0,75138.0,0.1315]
[1730970350896,1.501666,75139.0,75138.0,0.1325]
[1730970351118,1.501666,75139.0,75138.0,0.1315]
[1730970351556,1.501666,75139.0,75138.0,0.1325]
[1730970351995,0.001666,75139.0,75138.0,0.1325]
[1730970352217,0.001666,75139.0,75138.0,0.13516142]
[1730970353824,0.001666,75139.0,75138.0,0.13416142]
[1730970354041,0.001666,75139.0,75138.0,0.13516142]
[1730970354466,0.001666,75139.0,75138.0,0.27240244]
[1730970354689,0.001666,75139.0,75138.0,0.27974102]
[1730970354897,0.001666,75139.0,75138.0,0.26974102]
[1730970355330,0.001666,75139.0,75138.0,0.27974102]
[1730970361210,0.001666,75139.0,75138.0,0.1425]
[1730970362087,0.001666,75139.0,75138.0,0.0831]
[1730970364617,0.134752,75139.0,75138.0,0.0831]
[1730970364818,0.001666,75139.0,75138.0,0.0831]
[1730970365475,0.001666,75139.0,75138.0,0.1306]
[1730970365688,0.001666,75139.0,75138.0,0.1316]
[1730970370369,0.001666,75139.0,75138.0,0.0781]
[1730970370370,0.134752,75139.0,75138.0,0.0781]
[1730970370584,0.001666,75139.0,75138.0,0.0781]
[1730970370798,0.134752,75139.0,75138.0,0.0781]
[1730970371221,0.134752,75139.0,75138.0,0.001]
[1730970371427,1.634752,75139.0,75138.0,0.001]
[1730970372066,1.634752,75139.0,75137.0,0.000833]
[1730970372067,0.133088,75138.0,75137.0,0.000833]
[1730970372701,1.501666,75139.0,75137.0,0.000833]
[1730970374022,1.501666,75139.0,75137.0,0.001833]
[1730970374238,1.501666,75139.0,75137.0,0.000833]
[1730970374442,1.501666,75139.0,75138.0,0.000833]
[1730970375098,1.634752,75139.0,75138.0,0.000833]
[1730970375766,1.501666,75139.0,75138.0,0.000833]
[1730970376211,1.501666,75139.0,75138.0,0.001833]
[1730970376431,1.501666,75139.0,75138.0,0.083633]
[1730970376641,1.501666,75139.0,75138.0,0.128633]
[1730970376642,0.001666,75139.0,75138.0,0.128633]
[1730970376878,0.001666,75139.0,75138.0,0.13129439]
[1730970377313,0.001666,75139.0,75138.0,0.27253541]
[1730970377535,0.001666,75139.0,75138.0,0.27487402]
[1730970377750,0.001666,75139.0,75138.0,0.37853515]
[1730970377988,0.001666,75139.0,75138.0,0.37687402]
[1730970378449,0.001666,75139.0,75138.0,0.37587402]
[1730970378660,0.001666,75139.0,75138.0,0.37487402]
[1730970379078,0.001666,75139.0,75138.0,0.37587402]
[1730970379294,0.001666,75139.0,75138.0,0.37487402]
[1730970379723,0.001666,75139.0,75138.0,0.37687402]
[1730970380169,0.001666,75139.0,75138.0,0.37487402]
[1730970380827,0.001666,75139.0,75138.0,0.37587402]
[1730970382160,0.001666,75139.0,75138.0,0.37787402]
[1730970382390,0.001666,75139.0,75138.0,0.37587402]
[1730970382596,0.001666,75139.0,75138.0,0.37487402]
[1730970383876,0.001666,75139.0,75138.0,0.40147402]
[1730970384540,0.001666,75139.0,75138.0,0.40447402]
[1730970384756,0.001666,75139.0,75138.0,0.40347402]
[1730970384979,0.001666,75139.0,75138.0,0.40447402]
[1730970385409,0.001666,75139.0,75138.0,0.40347402]
[1730970385626,0.001666,75139.0,75138.0,0.40447402]
[1730970385868,0.001666,75139.0,75138.0,0.40347402]
[1730970386299,0.001666,75139.0,75138.0,0.40447402]
[1730970390633,0.001666,75139.0,75138.0,0.40347402]
[1730970391070,0.001666,75139.0,75138.0,0.40447402]
[1730970391294,0.001666,75139.0,75138.0,0.40347402]
[1730970391504,0.001666,75139.0,75138.0,0.40447402]
[1730970391917,0.001666,75139.0,75138.0,0.42647402]
[1730970392124,0.001666,75139.0,75138.0,0.42747402]
[1730970392576,0.001666,75139.0,75138.0,0.42647402]
[1730970393888,0.001666,75139.0,75138.0,0.42747402]
[1730970394102,0.001666,75139.0,75138.0,0.42647402]
[1730970394306,0.001666,75139.0,75138.0,0.39987402]
[1730970394516,0.001666,75139.0,75138.0,0.42747402]
[1730970395225,0.001666,75139.0,75138.0,0.42647402]
[1730970395647,0.001666,75139.0,75138.0,0.42747402]